Cogmind - Beta 14 @@@ ROGUE MODE // 2024.08.09 @ 18:52:21 Player: Some Pennies Result: Destroyed by AG-20810 with Assembled Focal Cannon Performance ------------- Evolutions (4) 2000 Regions Visited (15) 3000 Robots Destroyed (163) 815 Value Destroyed (4980) 4980 Prototype IDs (33) 660 Alien Tech Used (0) 0 Bonus (3376) 3376 TOTAL SCORE: 14831 Bonus ------- High Alert Combat Kills 363 Follower Combat Kills 841 Met Data Miner 300 Met Imprinter 300 Destroyed Z-Imprinter 1000 Triggered Deep Caves Wall 500 Exposed GOLEM Chamber 500 Friendly Fire -428 Cogmind --------- Core Integrity 0/850 Matter 32/300 Energy 648/700 System Corruption 10% Temperature Cool (12) Movement Walking (110) Location -6/Deep Caves Parts ------- > --- POWER (2) -------- Zionite Light DM Reactor Zionite Light DM Reactor > --- PROPULSION (4) --- Armored Medium Treads Zionite Composite Leg I Zionite Composite Leg I Zionite Glidesys I > --- UTILITY (7) ------ Experimental Heat Sink (fused) Zionite Biocell > --- WEAPON (2) ------- Molecular Deconstructor > --- INVENTORY (5) ---- Advanced Sensor Array Zionite Laser-S Magnetic Acceleration Cannon Plasma Cutter Power Sword Peak State ------------ > --- POWER ------------ Light Fission Core Light Fission Core Light Fission Core Neutrino Core Zionite Light DM Reactor > --- PROPULSION ------- Armored Medium Treads Armored Medium Treads Heavy Treads > --- UTILITY ---------- Experimental Heat Sink Large Storage Unit Advanced Signal Interpreter Hardened Medium Armor Plating Thermal Shield Improved Shield Generator Power Bank > --- WEAPON ----------- Heavy Laser Zionite Laser-M > --- INVENTORY -------- Armored Treads Medium Treads Armored Medium Treads Advanced Heat Sink Advanced Sensor Array Improved EM Pulse Cannon Magnetic Acceleration Cannon Heavy Missile Launcher Guided Missile Launcher Plasma Cutter Molecular Deconstructor Power Sword CR-A16's Pointy Stick [Rating: 106] Favorites ----------- Power Light Fission Core Engine Subdweller Power Source Power Core Light Fission Core Reactor Antimatter Reactor Propulsion Armored Medium Treads Treads Armored Medium Treads Leg Zionite Composite Leg I Wheel Wheel Hover Unit Backup Propulsion VII Flight Unit Improved Flight Unit Utility Hacking Suite Device Improved Sensor Array Storage Huge Storage Unit Processor Improved Signal Interpreter Hackware Hacking Suite Protection Hardened Medium Armor Plating Weapon Slug Cannon Energy Gun Zionite Phaser-S Energy Cannon Subdweller Beam Cannon Ballistic Gun Assault Rifle Ballistic Cannon Slug Cannon Launcher Missile Launcher Special Weapon Plasma Cutter Slashing Weapon Katana Piercing Weapon CR-A16's Pointy Stick Special Melee Weapon Improved Datajack Build | -11 -10 -10 -8 -7 -7 -7 -7 -7 -7 -6 -6 -6 -6 -6 -6 ------- Run | Yrd Mat Sub Mat Fac Was Fac Low Low Dat Pro Fac Low Low Zio Dee Slots Evolved 8 | . . . 4 2 . . . . . . 2 . . . . Power 1 | . . . . . . . . . . . 1 . . . . Propulsion 2 | . . . 2 . . . . . . . . . . . . Utility 5 | . . . 2 2 . . . . . . 1 . . . . Weapon . | . . . . . . . . . . . . . . . . Parts Attached 230 | 7 11 12 65 14 17 . 2 . 2 20 3 2 14 15 46 Power 22 | 1 1 3 4 1 2 . . . . . 1 1 1 3 4 Engine 6 | 1 1 3 1 . . . . . . . . . . . . Core 9 | . . . 3 1 . . . . . . 1 . 1 3 . Reactor 7 | . . . . . 2 . . . . . . 1 . . 4 Propulsion 47 | 2 4 . 18 4 9 . . . . . . . . 1 9 Treads 30 | 2 2 . 11 1 8 . . . . . . . . 1 5 Leg 5 | . 1 . 1 . . . . . . . . . . . 3 Wheel 6 | . 1 . 5 . . . . . . . . . . . . Hover 2 | . . . . 1 . . . . . . . . . . 1 Flight 4 | . . . 1 2 1 . . . . . . . . . . Utility 75 | 2 3 2 20 7 4 . 2 . . 6 2 1 8 3 15 Device 34 | 1 . . 6 1 3 . 2 . . 4 2 1 5 2 7 Storage 9 | 1 2 . . 1 . . . . . . . . 2 1 2 Processor 4 | . . . 1 1 1 . . . . . . . 1 . . Hackware 6 | . . . 1 4 . . . . . 1 . . . . . Protection 22 | . 1 2 12 . . . . . . 1 . . . . 6 Artifact . | . . . . . . . . . . . . . . . . Weapon 86 | 2 3 7 23 2 2 . . . 2 14 . . 5 8 18 Energy Gun 8 | . . . 2 . . . . . . . . . . . 6 Energy Cannon 15 | . 1 3 9 . . . . . . . . . . . 2 Ballistic Gun 7 | 2 1 . 4 . . . . . . . . . . . . Ballistic Cannon 24 | . 1 3 4 . 2 . . . 1 7 . . 2 2 2 Launcher 13 | . . . 3 . . . . . . 5 . . 1 1 3 Special Weapon 4 | . . 1 . . . . . . . 1 . . . 1 1 Impact Weapon . | . . . . . . . . . . . . . . . . Slashing Weapon 11 | . . . 1 1 . . . . 1 1 . . 2 2 3 Piercing Weapon 3 | . . . . . . . . . . . . . . 2 1 Special Melee Weapon 1 | . . . . 1 . . . . . . . . . . . Unidentified Prototypes 17 | . . . 4 . . . . . . 1 . . . 2 10 Parts Lost 56 | . 2 3 19 4 . . . . . 1 . . . 1 26 Power 7 | . . 1 1 . . . . . . . . . . . 5 Propulsion 15 | . 1 . 6 3 . . . . . . . . . . 5 Utility 21 | . . 1 7 1 . . . . . 1 . . . . 11 Weapon 13 | . 1 1 5 . . . . . . . . . . 1 5 Highest Loss Streak 20 | . 1 2 3 3 . . . . . 1 . . . 1 20 To Critical Strikes . | . . . . . . . . . . . . . . . . Average Slot Usage (%) 93 | . 99 98 91 69 97 100 100 100 97 97 95 95 86 90 80 Engine 4 | . 14 13 4 . . . . . . . . . . . . Core 4 | . . . 3 4 2 . . . . . 1 5 9 16 9 Reactor 3 | . . . . . 4 7 7 7 7 7 6 5 5 5 6 Treads 24 | . 25 28 28 1 29 30 30 30 30 30 26 24 22 18 14 Wheel 1 | . 2 . 5 . . . . . . . . . . . . Device 9 | . 5 . 6 3 4 7 7 7 7 6 13 13 17 21 22 Storage 8 | . 14 14 9 1 7 7 7 7 7 7 6 5 5 5 5 Processor 3 | . . . 3 5 7 7 7 7 7 7 6 5 5 5 1 Hackware 6 | . . . 1 24 23 23 23 23 23 20 13 10 4 . . Protection 6 | . 8 13 11 . . . . . . . 6 5 5 5 5 Energy Cannon 3 | . 3 15 8 . . . . . . . . . . . 1 Ballistic Gun 3 | . 20 . 4 . . . . . . . . . . . . Ballistic Cannon 7 | . 4 12 4 . 4 15 15 15 . 12 13 12 9 3 1 Peak Build Rating 106 | 7 13 17 30 54 59 59 60 59 58 69 72 77 89 99 106 Average Rating 47 | 5 10 15 25 32 56 59 59 59 55 59 68 73 85 92 87 On Entrance 48 | . 7 12 17 21 36 59 59 59 59 58 62 72 77 87 96 Naked Turns . | . . . . . . . . . . . . . . . . Heaviest Build 114 | 15 98 104 114 88 41 41 42 41 36 50 63 63 79 91 96 Greatest Support 124 | 40 40 40 80 32 108 108 108 108 108 108 108 108 108 124 124 Greatest Overweight (x) 37 | 1 4 2 37 17 . . . . . . . . . . 11 Average Overweight (x) . | . 1 2 2 . . . . . . . . . . . . Largest Inventory Capacity 25 | 8 25 25 25 25 10 10 10 10 10 10 10 10 15 15 15 Average Capacity 17 | 7 20 25 25 7 10 10 10 10 10 10 10 10 14 15 13 Most Carried 25 | 4 25 25 25 19 10 10 10 10 10 10 9 10 15 15 15 Average Carried 16 | 1 18 24 23 6 9 10 9 10 10 9 9 9 13 14 12 Final Capacity 25 | 8 25 25 25 10 10 10 10 10 10 10 10 10 15 15 5 Final Carried 25 | 4 25 25 20 9 10 10 10 10 10 10 9 9 14 15 5 Class Distribution -------------------- 28% | Hacker-Mutant 24% | Scavenger-Mutant 20% | Mutant 20% | Derelict-Mutant 4% | Subdweller-Mutant Dominant Class ---------------- Mutant | -10/Materials Scavenger-Mutant | -10/Subcaves Scavenger-Mutant | -8/Materials Hacker-Mutant | -7/Factory Hacker-Mutant | -7/Waste Hacker-Mutant | -7/Factory Hacker-Mutant | -7/Lower Caves Hacker-Mutant | -7/Lower Caves Hacker-Mutant | -7/Data Miner Hacker-Mutant | -6/Proximity Caves Hacker-Mutant | -6/Factory Hacker-Mutant | -6/Lower Caves Derelict-Mutant | -6/Lower Caves Derelict-Mutant | -6/Zion Scavenger-Mutant | -6/Deep Caves Resources | -11 -10 -10 -8 -7 -7 -7 -7 -7 -7 -6 -6 -6 -6 -6 -6 ----------- Run | Yrd Mat Sub Mat Fac Was Fac Low Low Dat Pro Fac Low Low Zio Dee Matter Collected 5411 | 354 668 358 1541 338 205 43 20 90 . 782 . 110 251 186 465 Remotely . | . . . . . . . . . . . . . . . . Salvage Created 6021 | 138 1099 259 2885 365 . 7 . 32 . 506 . . 114 . 616 Parts 294 | 13 76 13 135 15 . 4 . 1 . 14 . . 5 . 18 Haulers Intercepted 8 | . 2 . 6 . . . . . . . . . . . . Recyclers Shooed 9 | . 1 . 5 3 . . . . . . . . . . . Parts Field Recycled . | . . . . . . . . . . . . . . . . Retrieved Matter . | . . . . . . . . . . . . . . . . Parts Self-Destructed 53 | . . 19 . . . . 6 5 . 21 . . 2 . . Prevented 6 | . . . . . . . 3 . . 1 . . 2 . . Kills | -11 -10 -10 -8 -7 -7 -7 -7 -7 -7 -6 -6 -6 -6 -6 -6 ------- Run | Yrd Mat Sub Mat Fac Was Fac Low Low Dat Pro Fac Low Low Zio Dee Combat Hostiles Destroyed 134 | . 21 7 49 . . . . 1 . 18 . . 5 . 33 Melee 7 | . . . . . . . . . . . . . . . 7 Guns 21 | . 11 . 10 . . . . . . . . . . . . Cannons 59 | . 10 7 35 . . . . 1 . 4 . . 1 . 1 AOE 44 | . . . 3 . . . . . . 14 . . 4 . 23 Classes Destroyed 21 | 3 7 . 5 . . . . 1 . 2 . . . . 3 Worker 17 | 1 2 . 11 1 . 2 . . . . . . . . . Builder 10 | . 2 . 5 1 . 2 . . . . . . . . . Tunneler 4 | 3 1 . . . . . . . . . . . . . . Hauler 8 | . 2 . 6 . . . . . . . . . . . . Recycler 10 | 1 2 . 3 4 . . . . . . . . . . . Mechanic 1 | . . . 1 . . . . . . . . . . . . Operator 4 | . 2 . 2 . . . . . . . . . . . . Watcher 6 | . 3 . 3 . . . . . . . . . . . . Swarmer 14 | . 3 . 3 . . . . . . 4 . . 4 . . Grunt 59 | . 16 1 32 . . . . . . 10 . . . . . Brawler 1 | . . . . . . . . . . 1 . . . . . Duelist 2 | . . . 2 . . . . . . . . . . . . Sentry 8 | . . . 7 . . . . . . 1 . . . . . Specialist 5 | . . . 4 . . . . . . 1 . . . . . Hunter 2 | . . . . . . . . . . 1 . . 1 . . Programmer 1 | . . . . . . . . 1 . . . . . . . Heavy 1 | . . . 1 . . . . . . . . . . . . Subdweller 8 | . 2 6 . . . . . . . . . . . . . Z-Light 6 | . . . . . . . . . . . . . . . 6 Decomposer 3 | . . . . . . . . . . . . . 3 . . Assembled 26 | . . . . . . . . . . . . . . . 26 Golem 1 | . . . . . . . . . . . . . . . 1 Surgeon 2 | . . . . . . . . . . 2 . . . . . Thug 1 | . . . . . . . . . . 1 . . . . . Best Kill Streak 25 | 2 10 1 6 4 . 4 . 1 . 5 . . 4 . 25 Combat Bots Only 25 | . 6 1 3 . . . . 1 . 5 . . 4 . 25 Max Kills in Single Turn 4 | 1 2 1 2 1 . 1 . 1 . 3 . . 3 . 4 Gunslinging . | . . . . . . . . . . . . . . . . Exploded 4 | . . . 2 . . . . . . 3 . . 3 . 4 Melee 1 | . . . . . . . . . . . . . . . 1 Uniques/NPCs Destroyed 1 | . . . . . . . . . . . . . . . 1 Z-Imprinter (-6/Deep Caves) Combat | -11 -10 -10 -8 -7 -7 -7 -7 -7 -7 -6 -6 -6 -6 -6 -6 -------- Run | Yrd Mat Sub Mat Fac Was Fac Low Low Dat Pro Fac Low Low Zio Dee Hostile Shots Fired 872 | . 73 17 316 73 . 11 . 10 . 107 . 6 27 . 232 Missed 278 | . 19 2 106 33 . 5 . 2 . 41 . 3 11 . 56 Damage Taken 12401 | . 711 635 3951 613 . 166 . 151 . 1308 . 55 268 . 4543 Core 1869 | . 89 141 397 164 . . . . . 194 . . 16 . 868 Absorbed by Shields 377 | . . . . . . . . . . . . . 15 . 362 Redirected to Shielding 9 | . . . 9 . . . . . . . . . . . . Ignored by Resistances 442 | . . . . . . . . . . . . . . . 442 Regen/Repaired (Parts) 404 | . . . . . 85 5 . 42 . 272 . . . . . Core Remaining (%) 45 | 100 . 8 27 . . . . . . 48 . . . . . Volleys Fired 503 | 14 80 42 240 . . 6 . 8 . 39 . 8 24 . 42 Largest 2 | 2 2 2 2 . . 2 . 2 . 2 . 1 2 . 2 Hottest 137 | 40 80 119 137 . . 96 . 96 . 96 . 53 101 . 133 Shots Fired 890 | 28 160 58 456 . . 13 . 16 . 66 . 8 33 . 52 Gun 318 | 28 125 . 144 . . . . . . . . . . . 21 Cannon 507 | . 35 42 305 . . 13 . 16 . 48 . 8 27 . 13 Launcher 40 | . . . 7 . . . . . . 18 . . 6 . 9 Special 25 | . . 16 . . . . . . . . . . . . 9 Kinetic 591 | 28 159 21 266 . . 13 . 16 . 48 . 8 27 . 5 Thermal 239 | . 1 37 190 . . . . . . . . . . . 11 Explosive 33 | . . . . . . . . . . 18 . . 6 . 9 Electromagnetic 8 | . . . . . . . . . . . . . . . 8 Phasic 10 | . . . . . . . . . . . . . . . 10 Robot Hit Streak 17 | 6 17 16 17 . . 4 . 3 . 7 . . 3 . 11 Robot Miss Streak 6 | 2 5 2 5 . . 3 . 3 . 6 . . 3 . 3 Penetration Max 1 | . . . 1 . . . . . . 1 . . . . . Secondary Targets 2 | . 2 . . . . . . . . . . . . . . Max Gunslinging Chain 1 | . 1 . . . . . . . . . . . . . . Shots Hit Robots 559 | 17 101 23 299 11 . 4 . 7 . 39 . . 10 . 48 Core Hits 309 | 6 53 7 127 5 . 1 . 1 . 42 . . 10 . 57 Critical Kills 10 | . . . 7 . . . . . . 2 . . 1 . . Critical Parts Destroyed 22 | . 2 . 14 . . 2 . . . 3 . . 1 . . Critical Strikes 35 | . 2 . 22 . . 2 . 1 . 5 . . 3 . . Meltdown 1 | . . . 1 . . . . . . . . . . . . Destroy 32 | . 2 . 20 . . 2 . 1 . 5 . . 2 . . Blast 2 | . . . 1 . . . . . . . . . 1 . . Melee Attacks 55 | . . . 1 24 . . . . . 1 . . 15 1 13 Impact . | . . . . . . . . . . . . . . . . Slashing 54 | . . . 1 23 . . . . . 1 . . 15 1 13 Piercing . | . . . . . . . . . . . . . . . . Sneak Attacks 11 | . . . . 8 . . . . . . . . 3 . . Combat Hostiles . | . . . . . . . . . . . . . . . . Follow-up Attacks . | . . . . . . . . . . . . . . . . Damage Inflicted 16773 | 215 1484 541 7276 583 . 144 . 195 . 2671 . . 570 . 3094 Guns 3273 | 215 1022 . 1618 . . . . . . . . . . . 418 Cannons 7315 | . 459 541 4656 . . 122 . 195 . 941 . . 141 . 260 Explosions 4911 | . . . 962 . . . . . . 1730 . . 222 . 1997 Melee 1209 | . . . . 583 . . . . . . . . 207 . 419 Ramming 65 | . 3 . 40 . . 22 . . . . . . . . . Kinetic 7519 | 215 1463 168 4185 . . 122 . 195 . 941 . . 141 . 89 Thermal 3676 | . 18 373 3051 . . . . . . . . . . . 234 Explosive 3869 | . . . . . . . . . . 1730 . . 222 . 1917 Electromagnetic 171 | . . . . . . . . . . . . . . . 171 Impact . | . . . . . . . . . . . . . . . . Slashing 1209 | . . . . 583 . . . . . . . . 207 . 419 Piercing . | . . . . . . . . . . . . . . . . Phasic 264 | . . . . . . . . . . . . . . . 264 Highest Corruption 10 | . 2 9 . 2 2 2 2 2 2 5 . . . 2 10 Average Corruption 3 | . 1 8 . 1 2 2 2 2 2 2 . . . 2 9 Corruption Purged . | . . . . . . . . . . . . . . . . Corruption Blocked . | . . . . . . . . . . . . . . . . Effects 171 | . 30 64 . 1 13 5 4 6 1 30 . . . 6 11 Message Errors 36 | . 5 11 . . 2 2 2 2 . 7 . . . 2 3 Matter Fused 47 | . 9 20 . 1 1 . . . . 10 . . . 3 3 Heat Flow Errors 31 | . 7 9 . . 5 1 1 . 1 6 . . . 1 . Energy Discharges 18 | . 5 7 . . 1 . 1 2 . 1 . . . . 1 Parts Fused 4 | . 1 . . . . . . . . 2 . . . . 1 Data Loss (minor) 13 | . . 7 . . 1 1 . . . 3 . . . . 1 Data Loss (major) 12 | . 3 6 . . 2 . . . . . . . . . 1 Misfires 3 | . . 1 . . . 1 . 1 . . . . . . . Alerts 4 | . . 2 . . 1 . . . . 1 . . . . . Misdirections 1 | . . . . . . . . . . . . . . . 1 Weapon Failures 2 | . . 1 . . . . . 1 . . . . . . . Overload Shots . | . . . . . . . . . . . . . . . . Overflow Damage 553 | . . . 129 126 . 4 . 47 . 54 . . 103 . 90 Projectiles 196 | . . . 92 . . 4 . 47 . 27 . . . . 26 Explosions 135 | . . . 36 . . . . . . 27 . . 36 . 36 Melee 222 | . . . 1 126 . . . . . . . . 67 . 28 Knockbacks 45 | . 4 3 23 . . . . 3 . 9 . . 2 . 1 Impact 1 | . 1 . . . . . . . . . . . . . . Kinetic 42 | . 3 3 22 . . . . 2 . 9 . . 2 . 1 Secondary 2 | . . . 1 . . . . 1 . . . . . . . Self-Inflicted Damage 359 | . . . 14 . . . . . . 144 . . . . 201 Shots 8 | . . . 1 . . . . . . 3 . . . . 4 Rammed 9 | . 1 . 2 1 . 4 . . . . 1 . . . . Targets Rammed 14 | . 1 . 3 1 . 8 . . . . 1 . . . . Kicked . | . . . . . . . . . . . . . . . . Crushed 5 | . . . 1 . . 4 . . . . . . . . . Highest Temperature 312 | . 206 173 290 17 274 202 127 51 175 272 . 132 312 236 166 Average Temperature 53 | . 58 36 65 17 120 43 64 22 95 80 . 56 24 117 58 Received Heat Transfer 3082 | . 258 78 1386 198 . 12 . 9 . 336 . 27 . . 778 Siege Activations . | . . . . . . . . . . . . . . . . Robots Corrupted 2 | . . . 1 . . . . . . . . . . . 1 Combat Hostiles 1 | . . . . . . . . . . . . . . . 1 Parts Fried 5 | . . . 5 . . . . . . . . . . . . Impact Corruptions 1 | . . . 1 . . . . . . . . . . . . Robots Melted 1 | . . . 1 . . . . . . . . . . . . Combat Hostiles 1 | . . . 1 . . . . . . . . . . . . Parts Melted 6 | . . 1 4 . . . . . . 1 . . . . . Heat Transferred 5792 | . 37 555 4947 . . . . . . . . . . . 253 Parts Sabotaged . | . . . . . . . . . . . . . . . . Parts Stolen . | . . . . . . . . . . . . . . . . Parts Stripped . | . . . . . . . . . . . . . . . . Power Chain Reactions 1 | . . . . . . . . . . . . . . . 1 Alert | -11 -10 -10 -8 -7 -7 -7 -7 -7 -7 -6 -6 -6 -6 -6 -6 ------- Run | Yrd Mat Sub Mat Fac Was Fac Low Low Dat Pro Fac Low Low Zio Dee Peak Influence 826 | 25 288 . 826 460 108 744 . . . . 3 . . . . Initial 375 | . 16 . . 375 98 . . . . . 3 . . . . Average 229 | 9 116 . 357 376 43 362 . . . . 3 . . . . Maximum Alert Level 3 | . 1 . 3 2 . 3 . . . . . . . . . Low Security (%) 55 | 100 75 . 32 . 100 34 . . . . 100 . . . . Level 1 18 | . 24 . 17 56 . 9 . . . . . . . . . Level 2 20 | . . . 38 43 . 46 . . . . . . . . . Level 3 5 | . . . 12 . . 8 . . . . . . . . . Level 4 . | . . . . . . . . . . . . . . . . Level 5 . | . . . . . . . . . . . . . . . . High Security . | . . . . . . . . . . . . . . . . Max Security . | . . . . . . . . . . . . . . . . Squads Dispatched 18 | . 6 . 9 1 . 1 . . . . 1 . . . . Investigation 4 | . 3 . 1 . . . . . . . . . . . . Extermination 1 | . . . . 1 . . . . . . . . . . . Reinforcement 12 | . 3 . 7 . . 1 . . . . 1 . . . . Assault 1 | . . . 1 . . . . . . . . . . . . Garrison . | . . . . . . . . . . . . . . . . Intercept . | . . . . . . . . . . . . . . . . Searches Triggered . | . . . . . . . . . . . . . . . . Construction Impeded 3 | . . . 1 . . 1 . . . . 1 . . . . Haulers Reinforced . | . . . . . . . . . . . . . . . . Active Scanning Responses . | . . . . . . . . . . . . . . . . Cargo Convoy Interrupts . | . . . . . . . . . . . . . . . . Stealth | -11 -10 -10 -8 -7 -7 -7 -7 -7 -7 -6 -6 -6 -6 -6 -6 --------- Run | Yrd Mat Sub Mat Fac Was Fac Low Low Dat Pro Fac Low Low Zio Dee Distress Signals 14 | . 5 . 9 . . . . . . . . . . . . Communications Jammed . | . . . . . . . . . . . . . . . . Distress Signals . | . . . . . . . . . . . . . . . . Times Spotted 207 | . 34 14 68 11 . 7 1 4 . 20 . 6 2 . 40 Peak Tracking Total 11 | . 7 3 6 6 . 4 2 3 . 5 . 8 1 . 11 Tactical Retreats 14 | . 1 . 6 3 . . . . . . . . 1 . 3 Traps | -11 -10 -10 -8 -7 -7 -7 -7 -7 -7 -6 -6 -6 -6 -6 -6 ------- Run | Yrd Mat Sub Mat Fac Was Fac Low Low Dat Pro Fac Low Low Zio Dee Traps Triggered 3 | . 2 . . 1 . . . . . . . . . . . Indirectly . | . . . . . . . . . . . . . . . . Trap Hack Attempts . | . . . . . . . . . . . . . . . . Triggered . | . . . . . . . . . . . . . . . . Disarmed . | . . . . . . . . . . . . . . . . Reprogrammed . | . . . . . . . . . . . . . . . . Reused . | . . . . . . . . . . . . . . . . Traps Extracted . | . . . . . . . . . . . . . . . . Installed . | . . . . . . . . . . . . . . . . Triggered 3 | . . . . . . . 2 . . . . . 1 . . Machines | -11 -10 -10 -8 -7 -7 -7 -7 -7 -7 -6 -6 -6 -6 -6 -6 ---------- Run | Yrd Mat Sub Mat Fac Was Fac Low Low Dat Pro Fac Low Low Zio Dee Machines Disabled 17 | . . . 5 . . 6 . . . 1 . . . 3 2 Max in Single Turn 4 | . . . 1 . . 4 . . . 1 . . . 1 . Garrison Access 1 | . . . . 1 . . . . . . . . . . . Machines Repaired . | . . . . . . . . . . . . . . . . Machines Dismantled 3 | . . . . . . . . . . . . . . 3 . Machines Sabotaged . | . . . . . . . . . . . . . . . . Overloaded Fab Kills . | . . . . . . . . . . . . . . . . Hacking | -11 -10 -10 -8 -7 -7 -7 -7 -7 -7 -6 -6 -6 -6 -6 -6 --------- Run | Yrd Mat Sub Mat Fac Was Fac Low Low Dat Pro Fac Low Low Zio Dee Machines Accessed 26 | . 7 1 7 3 . 2 1 . 4 . 1 . . . . Terminals 12 | . 5 . 5 . . 1 1 . . . . . . . . Fabricators 2 | . . . . 1 . 1 . . . . . . . . . Repair Stations 1 | . . . . 1 . . . . . . . . . . . Recycling Units 4 | . 2 . 2 . . . . . . . . . . . . Scanalyzers 1 | . . . . . . . . . . . 1 . . . . Garrison Access 1 | . . . . 1 . . . . . . . . . . . Total Hacks 81 | . 19 4 18 3 . 3 1 . 32 . 1 . . . . Successful 61 | . 8 4 11 3 . 1 1 . 32 . 1 . . . . Failed 20 | . 11 . 7 . . 2 . . . . . . . . . Catastrophic 4 | . 2 . 2 . . . . . . . . . . . . Database Lockouts . | . . . . . . . . . . . . . . . . Manual 24 | . 11 . 11 . . . . . . 1 . . . 1 . Terminals 27 | . 14 . 11 . . 1 1 . . . . . . . . Fabricators 3 | . . . . 1 . 2 . . . . . . . . . Repair Stations 1 | . . . . 1 . . . . . . . . . . . Recycling Units 12 | . 5 . 7 . . . . . . . . . . . . Scanalyzers 1 | . . . . . . . . . . . 1 . . . . Garrison Access 1 | . . . . 1 . . . . . . . . . . . Terminal Hacks 46 | . 1 4 7 . . 1 1 . 32 . . . . . . Record 16 | . . 4 . . . . 1 . 11 . . . . . . Part Schematic 13 | . . . . . . . . . 13 . . . . . . Robot Schematic 5 | . . . . . . . . . 5 . . . . . . Robot Analysis 1 | . . . 1 . . . . . . . . . . . . Prototype ID Bank 4 | . . . 1 . . . . . 3 . . . . . . Open DSF 1 | . . . . . . 1 . . . . . . . . . Alert Level 2 | . . . 2 . . . . . . . . . . . . Unreport Threat 2 | . . . 2 . . . . . . . . . . . . Locate Traps 2 | . 1 . 1 . . . . . . . . . . . . Fabricator Hacks 1 | . . . . 1 . . . . . . . . . . . Network Status 1 | . . . . 1 . . . . . . . . . . . Repair Station Hacks 1 | . . . . 1 . . . . . . . . . . . Refit 1 | . . . . 1 . . . . . . . . . . . Recycling Unit Hacks 3 | . 2 . 1 . . . . . . . . . . . . Retrieve Matter 1 | . . . 1 . . . . . . . . . . . . Retrieve Components 2 | . 2 . . . . . . . . . . . . . . Scanalyzer 1 | . . . . . . . . . . . 1 . . . . Insert Component 1 | . . . . . . . . . . . 1 . . . . Garrison Access Hacks 1 | . . . . 1 . . . . . . . . . . . Seal Access 1 | . . . . 1 . . . . . . . . . . . Unauthorized Hacks 8 | . 5 . 3 . . . . . . . . . . . . Terminals 4 | . 4 . . . . . . . . . . . . . . Skim 4 | . 4 . . . . . . . . . . . . . . Fabricators . | . . . . . . . . . . . . . . . . Repair Stations . | . . . . . . . . . . . . . . . . Recycling Units 4 | . 1 . 3 . . . . . . . . . . . . Reject 1 | . . . 1 . . . . . . . . . . . . Mask 1 | . . . 1 . . . . . . . . . . . . Tunnel 2 | . 1 . 1 . . . . . . . . . . . . Scanalyzers . | . . . . . . . . . . . . . . . . Garrison Access . | . . . . . . . . . . . . . . . . Data Cores Recovered 1 | . . . . . . 1 . . . . . . . . . Used . | . . . . . . . . . . . . . . . . Hacking Detections 15 | . 6 . 6 1 . 1 . . . . 1 . . . . Full Trace Events 3 | . 2 . 1 . . . . . . . . . . . . Feedback Events . | . . . . . . . . . . . . . . . . Feedback Blocked . | . . . . . . . . . . . . . . . . Robot Schematics Acquired 7 | . . . . . . . . . 5 . . . . 2 . Robots Built . | . . . . . . . . . . . . . . . . Authchips . | . . . . . . . . . . . . . . . . Time . | . . . . . . . . . . . . . . . . Total Robot Build Rating . | . . . . . . . . . . . . . . . . Part Schematics Acquired 26 | . . . . . . . . . 13 . . . . 13 . Parts Built . | . . . . . . . . . . . . . . . . Authchips . | . . . . . . . . . . . . . . . . Time . | . . . . . . . . . . . . . . . . Total Part Build Rating . | . . . . . . . . . . . . . . . . Parts Repaired . | . . . . . . . . . . . . . . . . Time . | . . . . . . . . . . . . . . . . Parts Recycled . | . . . . . . . . . . . . . . . . Recycled Matter . | . . . . . . . . . . . . . . . . Retrieved Matter . | . . . . . . . . . . . . . . . . Retrieved Components 19 | . 19 . . . . . . . . . . . . . . Parts Scanalyzed . | . . . . . . . . . . . . . . . . Part Schematics Acquired . | . . . . . . . . . . . . . . . . Parts Damaged . | . . . . . . . . . . . . . . . . Bothacking | -11 -10 -10 -8 -7 -7 -7 -7 -7 -7 -6 -6 -6 -6 -6 -6 ------------ Run | Yrd Mat Sub Mat Fac Was Fac Low Low Dat Pro Fac Low Low Zio Dee Used RIF Installer . | . . . . . . . . . . . . . . . . Robots Hacked 1 | . . . . 1 . . . . . . . . . . . Non-combat 1 | . . . . 1 . . . . . . . . . . . Combat . | . . . . . . . . . . . . . . . . Robot Hacks Applied 1 | . . . . 1 . . . . . . . . . . . find_recycling 1 | . . . . 1 . . . . . . . . . . . Relay Couplers Released . | . . . . . . . . . . . . . . . . Fabnet Peak Effective % . | . . . . . . . . . . . . . . . . Robots Rewired . | . . . . . . . . . . . . . . . . Allies Hacked 1 | . . . . . . . . 1 . . . . . . . Hacks Repelled . | . . . . . . . . . . . . . . . . Allies | -11 -10 -10 -8 -7 -7 -7 -7 -7 -7 -6 -6 -6 -6 -6 -6 -------- Run | Yrd Mat Sub Mat Fac Was Fac Low Low Dat Pro Fac Low Low Zio Dee Total Allies 24 | . . . . . 20 . . . . . . . . 4 . Largest Group 20 | . . . . . 20 19 15 14 9 9 . . . 4 4 Highest-Rated Group 505 | . . . . . 505 491 401 366 275 273 . . . 254 254 Highest-Rated Ally 96 | . . . . . 35 35 35 35 35 35 . . . 96 96 Total Orders 1 | . . . . . . . . . . . 1 . . . . EXPLORE 1 | . . . . . . . . . . . 1 . . . . Ally Attacks 233 | . . . . . 21 39 6 51 . 66 . . . . 50 Total Damage 5833 | . . . . . 241 1214 167 907 . 1351 . . . . 1953 Kills 42 | . . . . . 2 16 3 7 . 4 . . . . 10 Allies Corrupted 2 | . . . . . . . . . . 1 1 . . . . Allies Melted . | . . . . . . . . . . . . . . . . Intel | -11 -10 -10 -8 -7 -7 -7 -7 -7 -7 -6 -6 -6 -6 -6 -6 ------- Run | Yrd Mat Sub Mat Fac Was Fac Low Low Dat Pro Fac Low Low Zio Dee Robot Analysis Total 1 | . . . 1 . . . . . . . . . . . . Derelict Logs Recovered 7 | . . 1 . . . . 1 1 . 1 . 1 1 1 . Drone Launches 2 | . . . . . . . . . . . 2 . . . . Drone Recoveries 1 | . . . . . . . . . . . 1 . . . . Exploration | -11 -10 -10 -8 -7 -7 -7 -7 -7 -7 -6 -6 -6 -6 -6 -6 ------------- Run | Yrd Mat Sub Mat Fac Was Fac Low Low Dat Pro Fac Low Low Zio Dee Turns Passed 17663 | 170 2572 2105 3141 494 932 419 366 470 161 1812 138 388 1185 2255 1055 Spaces Moved 7881 | 75 887 597 885 568 499 203 201 250 90 962 77 217 579 1270 521 Core 106 | 10 . . 1 1 . . . . . . . . . . 94 Treads 6780 | 65 815 597 568 7 499 203 201 250 90 962 77 217 579 1270 380 Legs 41 | . . . . . . . . . . . . . . . 41 Wheels 388 | . 72 . 316 . . . . . . . . . . . . Hover 167 | . . . . 161 . . . . . . . . . . 6 Flight 399 | . . . . 399 . . . . . . . . . . . Fastest Speed 40 | 50 150 320 140 40 170 170 170 170 170 170 170 170 170 166 50 Average Speed 186 | 148 245 320 227 64 170 170 170 170 170 170 170 170 170 167 144 Slowest Speed 1900 | 160 480 320 1900 1230 170 170 170 170 170 170 170 170 170 170 600 Overloaded Moves 15 | . . . . 15 . . . . . . . . . . . Propulsion Burnouts . | . . . . . . . . . . . . . . . . Robots Hopped . | . . . . . . . . . . . . . . . . Cave-ins Triggered 1 | . . 1 . . . . . . . . . . . . . Exploration Rate (%) 52 | 4 96 45 64 12 96 12 39 52 69 88 9 45 67 84 57 Regions Visited 15 Branch Regions 9 Pre-discovered Areas 8 | . 1 1 1 . . . . 1 1 . . . 1 2 . Known Exits Taken 10 | . . . 1 . . 1 1 1 1 1 1 1 1 1 . Unknown Exits Taken 3 | 1 1 1 . . . . . . . . . . . . . Scrap Searched 25 | . . 3 . . . . 3 1 . 4 . 1 10 3 . Spaces Dug 79 | . . 11 12 9 . . . . . 15 . 6 21 . 5 Terrain Destroyed 461 | . 1 14 110 9 . 34 . 7 . 149 . 6 79 . 52 Melee 21 | . . . 1 9 . . . . . . . . 11 . . Projectile 116 | . 1 14 49 . . 4 . 7 . 14 . 6 17 . 4 AOE 324 | . . . 60 . . 30 . . . 135 . . 51 . 48 Terrain Rammed . | . . . . . . . . . . . . . . . . Walls Destroyed . | . . . . . . . . . . . . . . . . Machines Disabled . | . . . . . . . . . . . . . . . . Actions | -11 -10 -10 -8 -7 -7 -7 -7 -7 -7 -6 -6 -6 -6 -6 -6 --------- Run | Yrd Mat Sub Mat Fac Was Fac Low Low Dat Pro Fac Low Low Zio Dee Total 9807 | 105 1126 709 1558 671 589 260 226 279 101 1064 83 228 721 1347 740 Wait 775 | 1 108 32 287 33 32 43 21 21 2 32 3 . 74 4 82 Move 7866 | 74 886 595 884 568 498 202 200 249 89 961 76 216 578 1269 521 Hop . | . . . . . . . . . . . . . . . . Pick Up 156 | 9 31 11 40 14 15 . 1 . . 3 . 1 8 11 12 Fast Attach 71 | 2 . 3 14 3 5 . 1 . 1 6 1 1 5 10 19 Attach 77 | 5 3 3 26 10 9 . . . . . 1 . . 2 18 Detach 2 | . . 1 . . . . . . . . . . . . 1 Swap 83 | . 8 6 25 1 3 . 1 . 1 14 1 1 9 4 9 Drop 167 | . 9 15 38 17 19 . 2 . 8 8 . 1 8 19 23 Fire 503 | 14 80 42 240 . . 6 . 8 . 39 . 8 24 . 42 Melee 55 | . . . 1 24 . . . . . 1 . . 15 1 13 Ram . | . . . . . . . . . . . . . . . . Kick . | . . . . . . . . . . . . . . . . Crush 14 | . 1 . 3 1 . 8 . . . . 1 . . . . Escape Stasis 2 | . . 1 . . . 1 . . . . . . . . . Rewire 9 | . . . . . 8 . . 1 . . . . . . . Trap . | . . . . . . . . . . . . . . . . Miscellaneous 27 | . . . . . . . . . . . . . . 27 . Route ------- -11/Scrapyard -10/Materials (discovered 5 exits: [*Mat x3] / [*Min] / *Sub) -10/Subcaves -8/Materials (discovered 3 exits: *Fac x3) -7/Factory -7/Waste -7/Factory -7/Lower Caves -7/Lower Caves -7/Data Miner -6/Proximity Caves -6/Factory (discovered 2 exits: [*Fac] / *Low) -6/Lower Caves -6/Lower Caves (discovered 2 exits: [*Fac] / *Zio) -6/Zion (discovered 2 exits: *Dee / [*Pro]) -6/Deep Caves History --------- Turn | Location | Event 8 | -11/Scrapyard | Discovered new exit (range 16) 171 | -11/Scrapyard | Entered Materials 324 | -10/Materials | Build established: Mutant 416 | -10/Materials | Discovered new exit (range 6) 771 | -10/Materials | Derelicts attacked the area 1035 | -10/Materials | Discovered new exit (range 16) 1785 | -10/Materials | Discovered new exit (range 13) 2054 | -10/Materials | Discovered new exit (range 15) 2740 | -10/Materials | Discovered new exit (range 2) 2743 | -10/Materials | Entered Subcaves 2801 | -10/Subcaves | Learned location of 1 exit from Materials 3019 | -10/Subcaves | Crushed by falling debris 3020 | -10/Subcaves | Core integrity fell below 50% 3020 | -10/Subcaves | Core integrity fell below 20% 3076 | -10/Subcaves | Ambushed by swarm of Subdwellers 3103 | -10/Subcaves | A Subdweller sparked back to life 3141 | -10/Subcaves | Found Prototype Device 3422 | -10/Subcaves | Ambushed by angry Subdweller bent on revenge 3443 | -10/Subcaves | Build established: Scavenger-Mutant 3656 | -10/Subcaves | Visited Clippyterm 3665 | -10/Subcaves | Learned Factory fabricator intel 3665 | -10/Subcaves | Learned Factory garrison access intel 3772 | -10/Subcaves | A swath of the cavern ceiling suddenly collapsed 4029 | -10/Subcaves | Learned location of Zion (-6) 4029 | -10/Subcaves | Met a Zionite searching for "candidates" 4310 | -10/Subcaves | A swath of the cavern ceiling suddenly collapsed 4702 | -10/Subcaves | Shifting Twisted Machinery released Sub. Shrapnel Launcher 4705 | -10/Subcaves | Shifting Twisted Machinery released Sub. Power Source 4810 | -10/Subcaves | Discovered new exit (range 11) 4848 | -10/Subcaves | Entered Materials 4848 | -8/Materials | Evolved 4 slots: Propulsion x2, Utility x2 4849 | -8/Materials | Identified exit to Factory 5144 | -8/Materials | Build established: Subdweller-Mutant 5704 | -8/Materials | Lost 3 parts (2n1u) 5949 | -8/Materials | Build established: Scavenger-Mutant 6448 | -8/Materials | First assault squad dispatched 6813 | -8/Materials | Discovered exit to Factory (range 15) 7687 | -8/Materials | Discovered exit to Factory (range 5) 7697 | -8/Materials | Core integrity fell below 50% 7789 | -8/Materials | Lost 3 parts (2n1w) 7989 | -8/Materials | Entered Factory 7989 | -7/Factory | Evolved 2 slots: Utility x2 7990 | -7/Factory | Loaded intel: 6 fabricator locations 7991 | -7/Factory | Loaded intel: 3 garrison access locations 8309 | -7/Factory | Build established: Hacker-Mutant 8483 | -7/Factory | Discovered new exit (range 13) 8483 | -7/Factory | Sucked down chute 8483 | -7/Factory | Entered Waste 8484 | -7/Waste | Joined by Warlord forces that had cleared the area 8510 | -7/Waste | Lost 3 parts (2n1u) 8793 | -7/Waste | A Compactor rumbled back to life 8793 | -7/Waste | Allies destroyed C-40 Crusher 8903 | -7/Waste | Discovered new exit (range 13) 9404 | -7/Waste | Identified exit to Factory 9415 | -7/Waste | Entered Factory 9415 | -7/Factory | Accompanied by 20 allies 9539 | -7/Factory | Lost 3 allies 9768 | -7/Factory | Discovered new exit (range 15) 9795 | -7/Factory | Identified exit to Lower Caves 9834 | -7/Factory | Entered Lower Caves 9834 | -7/Lower Caves | Accompanied by 15 allies 9950 | -7/Lower Caves | Learned Factory stockpile data 10159 | -7/Lower Caves | Discovered new exit (range 10) 10173 | -7/Lower Caves | Identified exit to Lower Caves 10200 | -7/Lower Caves | Entered another Lower Caves area 10200 | -7/Lower Caves | Accompanied by 14 allies 10269 | -7/Lower Caves | Encountered a Warlord checkpoint 10381 | -7/Lower Caves | P-60 Hacker assimilated allied AH-4OD(s) 10631 | -7/Lower Caves | Discovered new exit (range 15) 10660 | -7/Lower Caves | Identified exit to Data Miner 10670 | -7/Lower Caves | Entered Data Miner 10670 | -7/Data Miner | Accompanied by 9 allies 10673 | -7/Data Miner | Discovered new exit (range 6) 10705 | -7/Data Miner | Met Data Miner 10737 | -7/Data Miner | Learned location of Section 7 (-2) 10737 | -7/Data Miner | Acquired the access code to Warlord's prototype stash 10767 | -7/Data Miner | Received God Mode back door access code from Data Miner 10827 | -7/Data Miner | Identified exit to Proximity Caves 10831 | -7/Data Miner | Entered Proximity Caves 10831 | -6/Proximity Caves | Accompanied by 9 allies 10835 | -6/Proximity Caves | Spotted B-75 Beast 10849 | -6/Proximity Caves | Acquired the password to a Derelict Tinkerer's latest research 10859 | -6/Proximity Caves | Found Prototype Special Weapon 10859 | -6/Proximity Caves | Identified Molecular Deconstructor 10981 | -6/Proximity Caves | Caught by Unaware searching for contraband prototypes 11020 | -6/Proximity Caves | Lost 7 allies 11427 | -6/Proximity Caves | Attracted the attention of an 0b10 checkpoint 11589 | -6/Proximity Caves | Discovered new exit (range 10) 11645 | -6/Proximity Caves | Learned Factory emergency access door positions 11765 | -6/Proximity Caves | Identified exit to Factory 12089 | -6/Proximity Caves | Core integrity fell below 50% 12643 | -6/Proximity Caves | Entered Factory 12643 | -6/Factory | Evolved 2 slots: Power x1, Utility x1 12672 | -6/Factory | Identified Power Bank 12675 | -6/Factory | Discovered new exit (range 43) 12752 | -6/Factory | Discovered new exit (range 28) 12778 | -6/Factory | Identified exit to Lower Caves 12781 | -6/Factory | Entered Lower Caves 12968 | -6/Lower Caves | Learned Factory terminal intel 13065 | -6/Lower Caves | Attached Power Bank, gained temporary slots: Power x3 13152 | -6/Lower Caves | Discovered new exit (range 11) 13167 | -6/Lower Caves | Identified exit to Lower Caves 13169 | -6/Lower Caves | Entered another Lower Caves area 13253 | -6/Lower Caves | Discovered new exit (range 11) 13579 | -6/Lower Caves | Build established: Derelict-Mutant 14327 | -6/Lower Caves | Discovered new exit (range 15) 14352 | -6/Lower Caves | Identified exit to Zion 14354 | -6/Lower Caves | Entered Zion 14428 | -6/Zion | Found CR-A16's Pointy Stick 14498 | -6/Zion | Received a visual enhancement algorithm 14515 | -6/Zion | Discovered new exit (range 12) 14523 | -6/Zion | Given A8's code to call for help 14827 | -6/Zion | Identified exit to Deep Caves 14885 | -6/Zion | Gained Derelict followers 15064 | -6/Zion | Met Imprinter 15134 | -6/Zion | Found Prototype Launcher 15134 | -6/Zion | Identified Rocket Array 15151 | -6/Zion | Found Prototype Launcher 15151 | -6/Zion | Identified Gui. Missile Launcher 15160 | -6/Zion | Found Gui. Missile Launcher 15218 | -6/Zion | Learned location of Quarantine (-2) 15538 | -6/Zion | System corruption cleaned by Quarantine Array 15972 | -6/Zion | Enhanced Grunt warped into view, answering call for help 15976 | -6/Zion | Enhanced Grunt warped into view, answering call for help 16178 | -6/Zion | Saw the warning signs outside the Deep Caves entrance 16609 | -6/Zion | Entered Deep Caves 16609 | -6/Deep Caves | Accompanied by 4 allies 16750 | -6/Deep Caves | Z-Facility disabled 16762 | -6/Deep Caves | Attacked by Z-Imprinter 16770 | -6/Deep Caves | Allies destroyed Z-Imprinter 16904 | -6/Deep Caves | Lost 3 allies 17096 | -6/Deep Caves | Found Prototype Protection 17096 | -6/Deep Caves | Identified Zio. Heavy Carapace 17177 | -6/Deep Caves | Build established: Scavenger-Mutant 17318 | -6/Deep Caves | Spotted AG-48263 17368 | -6/Deep Caves | Exposed GOLEM chamber 17369 | -6/Deep Caves | Triggered Deep Caves wall 17376 | -6/Deep Caves | Destroyed AG-48263 17378 | -6/Deep Caves | Found GOLEM Unit 17412 | -6/Deep Caves | System corruption reached 10% 17475 | -6/Deep Caves | Core integrity fell below 50% 17488 | -6/Deep Caves | Destroyed 25 combat bots 17505 | -6/Deep Caves | Lost 20 parts (3p5n8u4w) 17528 | -6/Deep Caves | Found Zio. Heavy Carapace 17616 | -6/Deep Caves | Spotted AG-20810 17640 | -6/Deep Caves | Core integrity fell below 20% 17664 | -6/Deep Caves | Destroyed by AG-20810 with Assembled Focal Cannon Last Messages --------------- AG-20810 core. 17648_ Zio. Light Carapace destroyed. 17651_ AG-20810 core destabilizing. 17651_ Entropy package melds with Wall. 17653_ Wall disintegrates. 17653_ AG-20810 core entropy levels peaking. 17654_ Entropy package works its way towards AG-20810 core. 17656_ AG-20810 core destabilizing. 17657_ Entropy package works its way towards AG-20810 core. 17659_ AG-20810 core destabilizing. 17660_ AG-20810 core entropy levels peaking. 17660_ Entropy package melds with Wall. 17661_ Wall disintegrates. 17661_ Concrete destabilizing. 17662_ Concrete disintegrates. 17663_ AG-20810 core entropy levels peaking. 17663_ Entropy package works its way towards AG-20810 core. Map ----- +----------------------------------------------------+ | | | | | | | | | | | | | | | | | | | | | | | | | | | | | | | | | | | | | | | | | | | | | | | ????????????????????#;;##;;%########## ###???????? | | ????????????????????# ! ;## #[ ##??##### | | ????????????????????# G*@ # ! #### | | ????????????????????# ; ######## !*= # | | ???????????????????## ####;####### ! | | ?????????????????### ###### # # # | | ?????????????????# # = | | ?????????????????# ! | | ?????????????????## | | ??????????????????### | | ????????????????????## | | ????????????????????# """"" | | ?????????????????#### """""""" | | ????????????????## # """""""" | | ????????????????# """""""" | | ????????????????# # """""""" | | ????????????????##### """""""" | | ???????????????????## ""??""" | | ???????????????????# ""?"" | | ???????????????????## "?" | | ?????????????????#### "?" | | ????????????????## # ? | | ????????????????# ??? | | ????????????????# ????? | | ????????????????# ????? | | ????????????????## ??????? | | ?????????????????### ??????? | +----------------------------------------------------+ Best States ------------- Heat Dissipation 115 Energy Generation 80 Energy Capacity 1160 Matter Stores 300 Matter Capacity 300 Sight Range 18 Robot Scan Range 16 Terrain Scan Density 10 Armor Coverage 1600 Resistance: TH 20 Core Shielding 20 Evasion (%) 62 Recoil Reduction 4 Force Boost 20 Offensive Hacking 30 Defensive Hacking 10 Item Schematics ----------------- Combat Drone Bay | -7/Data Miner | Free Lgt. Regenerative Plating | -7/Data Miner | Free Exp. Utility Shielding | -7/Data Miner | Free Cld. Aerolev Unit | -7/Data Miner | Free Antimatter Cannon | -7/Data Miner | Free Hvy. Treads | -7/Data Miner | Free Adv. Shield Generator | -7/Data Miner | Free Imp. Plasma Cutter | -7/Data Miner | Free Thermal Shield | -7/Data Miner | Free Variable Charge Gun | -7/Data Miner | Free Imp. Weapon Cycler | -7/Data Miner | Free Adv. Datajack | -7/Data Miner | Free HERF Cannon | -7/Data Miner | Free Imp. Reaction Control System | -6/Zion | Archive Imp. Corruption Screen | -6/Zion | Archive Energy Well | -6/Zion | Archive KE Penetrator | -6/Zion | Archive Enh. Optical Array | -6/Zion | Archive Antigrav System | -6/Zion | Archive Lgt. Angular Momentum Engine | -6/Zion | Archive Lgt. Antimatter Reactor | -6/Zion | Archive Hardcell Cannon | -6/Zion | Archive Lrn. Missile Launcher | -6/Zion | Archive Arm. Medium Treads | -6/Zion | Archive Arm. Leg | -6/Zion | Archive Adv. Sensor Array | -6/Zion | Archive Robot Schematics ------------------ M-14 Sweeper | -7/Data Miner | Free A-15 Conveyor | -7/Data Miner | Free M-28 Smith | -7/Data Miner | Free R-10 Processor | -7/Data Miner | Free G-50 Soldier | -7/Data Miner | Free H-66 Slayer | -6/Zion | Archive R-06 Scavenger | -6/Zion | Archive Fabricated ------------ Nothing Alien Tech Used ----------------- None Achievements -------------- Killing Spree Challenges ------------ None Game ------ Seed SalvageServoCarapace Manual? 0 Play Time 01:46:06 Cumulative 222.9 hours Start 2024.08.09 @ 17:00:08 End 2024.08.09 @ 18:52:21 Sessions 1 Manual Loads 0 Difficulty Rogue Special Mode None Game No. 186 Rogue 181 Adventurer 5 Explorer 0 Win Type - Total 4 Types 2/0/2/0/0/0/0/0/0 Lore% 59 Gallery% 78 Achievement% 62 Wizard Run 0 Options --------- Layout 2 ASCII 0 Keyboard 0 Movement Mouse Keybinds 0 Fullscreen 2 Font 24/Smallcaps Map View 50x44 Zoom Use 0% Tactical HUD 1 Map Filters NONE Filters NONE Steam 1 RUN: 69e08387-d853-47cd-a9ec-e1ac3f92fd7b